fUSD/lending_fUSD_20250703
["ID","MTS","AMOUNT","RATE_DAILY","PERIOD"]
[369147464,1751501459999,-320.680057,0.000245,7]
[369147465,1751501460015,-320.680057,0.000245,7]
[369147466,1751501460032,-320.680057,0.000245,7]
[369147467,1751501460049,-216.188513,0.000245,7]
[369147468,1751501460066,-216.188513,0.000245,7]
[369147469,1751501460083,-216.188513,0.000245,7]
[369147470,1751501460108,-216.188513,0.000245,7]
[369147471,1751501460123,-151.0,0.000245,7]
[369147472,1751501460139,-151.0,0.000245,7]
[369147473,1751501460155,-581.978281,0.000245,7]
[369147474,1751501460171,-581.978281,0.000245,7]
[369147475,1751501460187,-581.978281,0.000245,7]
[369147476,1751501460203,-581.978281,0.000245,7]
[369147477,1751501460219,-151.0,0.000245,7]
[369147478,1751501460235,-151.0,0.000245,7]
[369147479,1751501460251,-261.843302,0.000245,7]
[369147480,1751501460268,-323.076165,0.000245,7]
[369147481,1751501460286,-323.076162,0.000245,7]
[369147482,1751501460301,-933.3938,0.000245,7]
[369147483,1751501460317,-933.393807,0.000245,7]
[369147484,1751501460333,-220.003936,0.000245,7]
[369147485,1751501460349,-171.701269,0.000245,7]
[369147486,1751501460367,-220.003926,0.000245,7]
[369147487,1751501460386,-171.701261,0.000245,7]
[369147488,1751501460405,-463.437699,0.000245,7]
[369147489,1751501460421,-463.437708,0.000245,7]
[369147490,1751501460438,-186.655,0.000245,7]
[369147491,1751501460454,-186.655,0.000245,7]
[369147492,1751501460471,-564.221864,0.000245,7]
[369147493,1751501460487,-151.0,0.000245,7]
[369147494,1751501460503,-564.221861,0.000245,7]
[369147495,1751501460520,-303.454645,0.000245,7]
[369147496,1751501460537,-303.454645,0.000245,7]
[369147497,1751501460555,-1959.765421,0.000245,7]
[369147498,1751501460571,-1959.765421,0.000245,7]
[369147499,1751501460587,-1981.810196,0.000245,7]
[369147500,1751501460604,-1981.810196,0.000245,7]
[369147501,1751501460620,-927.184092,0.000245,7]
[369147502,1751501460636,-927.184092,0.000245,7]
[369147503,1751501460653,-151.0,0.000245,7]
[369147505,1751501460668,-404.015322,0.000245,7]
[369147506,1751501460685,-404.015322,0.000245,7]
[369147507,1751501460703,-331.664122,0.000245,7]
[369147508,1751501460720,-331.664122,0.000245,7]
[369147509,1751501460736,-213.154178,0.000245,7]
[369147510,1751501460752,-213.154178,0.000245,7]
[369147511,1751501460767,-493.858055,0.000245,7]
[369147512,1751501460783,-493.858055,0.000245,7]
[369147513,1751501460800,-151.0,0.000245,7]
[369147514,1751501460817,-151.0,0.000245,7]
[369147515,1751501460833,-151.0,0.000245,7]
[369147516,1751501460849,-216.133187,0.000245,7]
[369147517,1751501460864,-216.133187,0.000245,7]
[369147518,1751501460880,-1131.720116,0.000245,7]
[369147519,1751501460895,-1131.720116,0.000245,7]
[369147520,1751501460912,-431.175516,0.000245,7]
[369147521,1751501460928,-431.175516,0.000245,7]
[369147522,1751501460944,-232.936423,0.000245,7]
[369147523,1751501460960,-232.936423,0.000245,7]
[369147524,1751501460976,-304.939507,0.000245,7]
[369147525,1751501460992,-304.939507,0.000245,7]
[369147526,1751501461007,-714.547674,0.000245,7]
[369147527,1751501461023,-714.547674,0.000245,7]
[369147528,1751501461039,-2868.18314,0.000245,7]
[369147529,1751501461054,-2868.18314,0.000245,7]
[369147530,1751501461069,-151.0,0.000245,7]
[369147531,1751501461085,-617.358828,0.000245,7]
[369147532,1751501461101,-244.214239,0.000245,7]
[369147533,1751501461118,-617.358828,0.000245,7]
[369147534,1751501461132,-244.214239,0.000245,7]
[369147535,1751501461148,-622.137778,0.000245,7]
[369147536,1751501461164,-622.137778,0.000245,7]
[369147537,1751501461180,-9504.15038,0.000245,7]
[369147538,1751501461195,-9504.15038,0.000245,7]
[369147539,1751501461211,-151.0,0.000245,7]
[369147540,1751501461227,-572.934396,0.000245,7]
[369147541,1751501461244,-572.934396,0.000245,7]
[369147542,1751501461260,-284.388367,0.000245,7]
[369147543,1751501461276,-284.388367,0.000245,7]
[369147544,1751501461292,-182.23807,0.000245,7]
[369147545,1751501461308,-182.23807,0.000245,7]
[369147546,1751501461324,-336.623846,0.000245,7]
[369147547,1751501461340,-336.623846,0.000245,7]
[369147548,1751501461355,-151.0,0.000245,7]
[369147549,1751501461371,-396.112675,0.000245,7]
[369147550,1751501461388,-396.112675,0.000245,7]
[369147551,1751501461403,-364.976019,0.000245,7]
[369147552,1751501461420,-364.976019,0.000245,7]
[369147553,1751501461436,-299.939567,0.000245,7]
[369147554,1751501461445,-299.939567,0.000245,7]
[369147555,1751501461455,-1170.718649,0.000245,7]
[369147556,1751501461464,-151.0,0.000245,7]
[369147557,1751501461474,-1170.718649,0.000245,7]
[369147558,1751501461484,-323.075993,0.000245,7]
[369147559,1751501461494,-323.075993,0.000245,7]
[369147560,1751501461505,-684.499913,0.000245,7]
[369147561,1751501461515,-684.499913,0.000245,7]
[369147562,1751501461525,-319.316278,0.000245,7]
[369147563,1751501461534,-319.316278,0.000245,7]
[369147564,1751501461544,-151.0,0.000245,7]
[369147565,1751501461556,-151.0,0.000245,7]
[369147566,1751501461566,-151.0,0.000245,7]
[369147567,1751501461577,-280.522502,0.000245,7]
[369147568,1751501461587,-280.522502,0.000245,7]
[369147569,1751501461597,-151.0,0.000245,7]
[369147570,1751501462078,-193.528007,0.000245,7]
[369147571,1751501462115,-223.379236,0.000245,7]
[369147572,1751501462134,-193.528007,0.000245,7]
[369147573,1751501462143,-223.379236,0.000245,7]
[369147574,1751501462152,-274.554995,0.00024502,7]
[369147575,1751501462161,-274.554995,0.00024502,7]
[369147576,1751501462170,-150.0,0.00024503,2]
[369147577,1751501462179,-1568.264699,0.00024505,7]
[369147578,1751501462188,-1568.264699,0.00024505,7]
[369147579,1751501462197,-402.373565,0.00024505,7]
[369147580,1751501462206,-402.373565,0.00024505,7]
[369147581,1751501462215,-238.627013,0.00024505,7]
[369147582,1751501462224,-394.39736012,0.00024505,2]
[369147583,1751501462233,-150.0,0.00024505,2]
[369147584,1751501462242,-238.627013,0.00024505,7]
[369147585,1751501462251,-528.900854,0.00024505,7]
[369147586,1751501462260,-528.900854,0.00024505,7]
[369147587,1751501462270,-157.564416,0.00024505,7]
[369147588,1751501462279,-157.564416,0.00024505,7]
[369147589,1751501462288,-150.0,0.00024506,2]
[369147590,1751501462298,-150.0,0.00024506,2]
[369147591,1751501462309,-150.0,0.00024511,2]
[369147592,1751501462319,-150.0,0.00024511,2]
[369147593,1751501462328,-163.085511,0.00024519,7]
[369147594,1751501462338,-163.085511,0.00024519,7]
[369147595,1751501462347,-535.780826,0.00024519,7]
[369147596,1751501462357,-535.780826,0.00024519,7]
[369147597,1751501462367,-864.301081,0.00024519,7]
[369147598,1751501462376,-864.301081,0.00024519,7]
[369147599,1751501462385,-1000.0,0.00024521,2]
[369147600,1751501462395,-813.77515636,0.00024521,2]
[369147601,1751501462404,-1000.0,0.00024521,2]
[369147602,1751501462414,-1000.0,0.00024521,2]
[369147603,1751501462424,-151.0,0.00024521,7]
[369147604,1751501462433,-213.149535,0.00024521,7]
[369147605,1751501462442,-266.529456,0.00024521,7]
[369147606,1751501462452,-266.529456,0.00024521,7]
[369147607,1751501462461,-151.0,0.00024521,7]
[369147608,1751501462471,-151.0,0.00024521,7]
[369147609,1751501462480,-151.0,0.00024521,7]
[369147610,1751501462490,-151.0,0.00024521,7]
[369147611,1751501462499,-235.221046,0.00024521,7]
[369147612,1751501462509,-218.48147,0.00024521,7]
[369147613,1751501462519,-218.48147,0.00024521,7]
[369147614,1751501462528,-152.332313,0.00024521,7]
[369147615,1751501462538,-152.332313,0.00024521,7]
[369147616,1751501462548,-151.0,0.00024521,7]
[369147617,1751501462558,-151.0,0.00024521,7]
[369147618,1751501462567,-151.0,0.00024521,7]
[369147619,1751501462577,-184.079485,0.00024521,7]
[369147620,1751501462587,-184.079485,0.00024521,7]
[369147621,1751501462596,-151.0,0.00024521,7]
[369147622,1751501462606,-329.273776,0.00024521,7]
[369147623,1751501462616,-329.273776,0.00024521,7]
[369147624,1751501462626,-231.597231,0.00024521,7]
[369147625,1751501462636,-231.597231,0.00024521,7]
[369147626,1751501462646,-482.992374,0.00024521,7]
[369147627,1751501462656,-482.992374,0.00024521,7]
[369147628,1751501462665,-320.680057,0.00024521,7]
[369147629,1751501462675,-320.680057,0.00024521,7]
[369147630,1751501462684,-216.188513,0.00024521,7]
[369147631,1751501462694,-216.188513,0.00024521,7]
[369147632,1751501462708,-151.0,0.00024521,7]
[369147633,1751501462717,-581.978281,0.00024521,7]
[369147634,1751501462727,-581.978281,0.00024521,7]
[369147635,1751501462737,-151.0,0.00024521,7]
[369147636,1751501462746,-170.032057,0.00024521,7]
[369147637,1751501462756,-213.154178,0.00024521,7]
[369147638,1751501462765,-213.154178,0.00024521,7]
[369147639,1751501462775,-493.858055,0.00024521,7]
[369147640,1751501462785,-493.858055,0.00024521,7]
[369147641,1751501462795,-151.0,0.00024521,7]
[369147642,1751501462805,-248.577883,0.00024521,7]
[369147643,1751501462815,-217.069282,0.00024521,7]
[369147644,1751501462824,-216.133187,0.00024521,7]
[369147645,1751501462833,-216.133187,0.00024521,7]
[369147646,1751501462842,-232.936423,0.00024521,7]
[369147647,1751501462852,-232.936423,0.00024521,7]
[369147648,1751501462861,-714.547674,0.00024521,7]
[369147649,1751501462870,-714.547674,0.00024521,7]
[369147650,1751501462879,-2868.18314,0.00024521,7]
[369147651,1751501462890,-2868.18314,0.00024521,7]
[369147652,1751501462900,-244.214239,0.00024521,7]
[369147653,1751501462911,-244.214239,0.00024521,7]
[369147654,1751501462921,-151.0,0.00024521,7]
[369147655,1751501462930,-364.976019,0.00024521,7]
[369147656,1751501462941,-364.976019,0.00024521,7]
[369147657,1751501462952,-150.0,0.00024524,2]
[369147658,1751501462961,-150.0,0.00024526,2]
[369147659,1751501462970,-182.865412,0.00024529,7]
[369147660,1751501462980,-182.865412,0.00024529,7]
[369147661,1751501462990,-174.375137,0.00024529,7]
[369147662,1751501463000,-174.375137,0.00024529,7]
[369147663,1751501463010,-150.0,0.00024535,2]
[369147664,1751501463019,-150.0,0.00024537,2]
[369147665,1751501463029,-151.0,0.00024539,2]
[369147666,1751501463038,-151.0,0.00024539,2]
[369147667,1751501463048,-151.0,0.00024539,2]
[369147668,1751501463059,-151.0,0.00024539,2]
[369147669,1751501463068,-288.97491827,0.00024539,2]
[369147670,1751501463077,-1203.0,0.00024539,2]
[369147671,1751501463087,-152.0,0.00024539,2]
[369147672,1751501463096,-151.0,0.00024539,2]
[369147673,1751501463106,-201.47884514,0.00024539,2]
[369147674,1751501463116,-151.0,0.00024539,2]
[369147675,1751501463125,-1203.0,0.00024539,2]
[369147676,1751501463135,-1203.0,0.00024539,2]
[369147677,1751501463145,-1203.0,0.00024539,2]
[369147678,1751501463154,-1203.0,0.00024539,2]
[369147679,1751501463164,-1203.0,0.00024539,2]
[369147680,1751501463173,-1203.0,0.00024539,2]
[369147681,1751501463183,-1203.0,0.00024539,2]
[369147682,1751501463192,-152.0,0.00024539,2]
[369147683,1751501463202,-1203.0,0.00024539,2]
[369147684,1751501463212,-166.0,0.00024539,2]
[369147685,1751501463222,-151.0,0.00024539,2]
[369147686,1751501463232,-152.0,0.00024539,2]
[369147687,1751501463242,-1203.0,0.00024539,2]
[369147688,1751501463252,-166.0,0.00024539,2]
[369147689,1751501463261,-152.0,0.00024539,2]
[369147690,1751501463271,-1203.0,0.00024539,2]
[369147691,1751501463281,-151.0,0.00024539,2]
[369147692,1751501463291,-166.0,0.00024539,2]
[369147693,1751501463301,-152.0,0.00024539,2]
[369147694,1751501463311,-151.0,0.00024539,2]
[369147695,1751501463320,-152.0,0.00024539,2]
[369147696,1751501463330,-151.0,0.00024539,2]
[369147697,1751501463340,-196.2696686,0.00024539,2]
[369147698,1751501463350,-151.0,0.00024539,2]
[369147699,1751501463359,-1203.0,0.00024539,2]
[369147700,1751501463368,-1203.0,0.00024539,2]
[369147701,1751501463378,-1203.0,0.00024539,2]
[369147702,1751501463388,-458.50801709,0.00024539,2]
[369147703,1751501463398,-151.0,0.00024539,2]
[369147704,1751501463407,-151.0,0.00024539,2]
[369147705,1751501463416,-151.0,0.00024539,2]
[369147706,1751501463426,-151.0,0.00024539,2]
[369147707,1751501463437,-151.0,0.00024539,2]
[369147708,1751501463447,-151.0,0.00024539,2]
[369147709,1751501463456,-302.0,0.00024539,2]
[369147710,1751501463466,-169.0,0.00024539,2]
[369147711,1751501463476,-169.0,0.00024539,2]
[369147712,1751501463486,-169.0,0.00024539,2]
[369147713,1751501463496,-151.0,0.00024539,2]
[369147714,1751501463505,-169.0,0.00024539,2]
[369147715,1751501463515,-151.0,0.00024539,2]
[369147716,1751501463524,-169.0,0.00024539,2]
[369147717,1751501463534,-721.92300939,0.00024539,2]
[369147718,1751501463543,-151.0,0.00024539,2]
[369147719,1751501463553,-171.27648785,0.00024539,2]
[369147720,1751501463563,-572.934396,0.00024539,7]
[369147721,1751501463573,-572.934396,0.00024539,7]
[369147722,1751501463582,-1170.718649,0.00024539,7]
[369147723,1751501463592,-1170.718643,0.00024539,7]
[369147724,1751501463602,-323.075993,0.00024539,7]
[369147725,1751501463610,-323.075984,0.00024539,7]
[369147726,1751501463620,-319.316278,0.00024539,7]
[369147727,1751501463629,-319.316269,0.00024539,7]
[369147728,1751501463639,-151.0,0.00024539,7]
[369147729,1751501463649,-151.0,0.00024539,7]
[369147730,1751501463658,-150.0,0.00024542,2]
[369147731,1751501463668,-150.0,0.00024545,2]
[369147732,1751501463678,-463.19417776,0.00024547,2]
[369147733,1751501463687,-500.0,0.00024547,2]
[369147734,1751501463698,-500.0,0.00024547,2]
[369147735,1751501463709,-200.0,0.00024547,2]
[369147736,1751501463719,-500.0,0.00024547,2]
[369147737,1751501463728,-500.0,0.00024547,2]
[369147738,1751501463739,-150.0,0.00024547,2]
[369147739,1751501463748,-150.0,0.00024547,2]
[369147740,1751501463758,-500.0,0.00024547,2]
[369147741,1751501463767,-150.0,0.00024547,2]
[369147742,1751501463778,-150.0,0.00024547,2]
[369147743,1751501463788,-1846.0,0.00024547,2]
[369147744,1751501463797,-500.0,0.00024547,2]
[369147745,1751501463806,-816.0,0.00024547,2]
[369147746,1751501463816,-215.24578391,0.00024547,2]
[369147747,1751501463825,-150.0,0.00024547,2]
[369147748,1751501463835,-296.23900244,0.00024547,2]
[369147749,1751501463845,-250.0,0.00024547,2]
[369147750,1751501463855,-500.0,0.00024547,2]
[369147751,1751501463865,-500.0,0.00024547,2]
[369147752,1751501463874,-255.13838126,0.00024547,2]
[369147753,1751501463884,-200.0,0.00024547,2]
[369147754,1751501463894,-500.0,0.00024547,2]
[369147755,1751501463903,-150.0,0.00024547,2]
[369147756,1751501463913,-150.0,0.00024547,2]
[369147757,1751501463922,-240.298736,0.00024548,7]
[369147758,1751501463932,-181.885694,0.00024548,7]
[369147759,1751501463942,-151.0,0.00024548,7]
[369147760,1751501463952,-181.885694,0.00024548,7]
[369147761,1751501463961,-151.0,0.00024548,7]
[369147762,1751501463971,-267.450865,0.00024548,7]
[369147763,1751501463980,-267.450865,0.00024548,7]
[369147764,1751501463990,-151.0,0.00024548,7]
[369147765,1751501464000,-186.655,0.00024548,7]
[369147766,1751501464009,-186.655,0.00024548,7]
[369147767,1751501464019,-1981.810196,0.00024548,7]
[369147768,1751501464029,-1981.810196,0.00024548,7]
[369147769,1751501464039,-151.0,0.00024548,7]
[369147770,1751501464048,-182.23807,0.00024548,7]
[369147771,1751501464058,-182.23807,0.00024548,7]
[369147772,1751501464067,-151.0,0.00024548,7]
[369147773,1751501464077,-396.112675,0.00024548,7]
[369147774,1751501464086,-396.112675,0.00024548,7]
[369147775,1751501464096,-151.0,0.00024548,7]
[369147776,1751501464105,-1000.0,0.00024551,2]
[369147777,1751501464115,-150.0,0.00024552,2]
[369147778,1751501464125,-394.39736012,0.00024557,2]
[369147779,1751501464135,-1000.0,0.00024565,2]
[369147780,1751501464144,-150.0,0.00024565,2]
[369147781,1751501464153,-7312.55185796,0.00024565,2]
[369147782,1751501464163,-151.0,0.00024567,7]
[369147783,1751501464172,-825.19966,0.00024567,7]
[369147784,1751501464182,-825.19966,0.00024567,7]
[369147785,1751501464191,-296.080108,0.00024567,7]
[369147786,1751501464201,-184.079485,0.00024567,7]
[369147787,1751501464210,-184.079485,0.00024567,7]
[369147788,1751501464219,-151.0,0.00024567,7]
[369147789,1751501464229,-329.273776,0.00024567,7]
[369147790,1751501464238,-329.273776,0.00024567,7]
[369147791,1751501464248,-197.93918745,0.00024567,7]
[369147792,1751501465212,-33.65804355,0.00024567,7]
[369147793,1751501465221,-231.597231,0.00024567,7]
[369147794,1751501465231,-216.188513,0.00024567,7]
[369147795,1751501465241,-216.188513,0.00024567,7]
[369147796,1751501465251,-151.0,0.00024567,7]
[369147797,1751501465260,-581.978281,0.00024567,7]
[369147798,1751501465270,-581.978281,0.00024567,7]
[369147799,1751501465280,-151.0,0.00024567,7]
[369147800,1751501465289,-1959.765421,0.00024567,7]
[369147801,1751501465299,-1959.765421,0.00024567,7]
[369147802,1751501465308,-404.015322,0.00024567,7]
[369147803,1751501465318,-404.015322,0.00024567,7]
[369147804,1751501465328,-331.664122,0.00024567,7]
[369147805,1751501465337,-331.664122,0.00024567,7]
[369147806,1751501465346,-1131.720116,0.00024567,7]
[369147807,1751501465357,-1131.720116,0.00024567,7]
[369147808,1751501465366,-431.175516,0.00024567,7]
[369147809,1751501465376,-431.175516,0.00024567,7]
[369147810,1751501465386,-304.939507,0.00024567,7]
[369147811,1751501465395,-304.939507,0.00024567,7]
[369147812,1751501465404,-1568.264699,0.00024567,7]
[369147813,1751501465414,-1568.264701,0.00024567,7]
[369147814,1751501465423,-402.373565,0.00024567,7]
[369147815,1751501465432,-402.373559,0.00024567,7]
[369147816,1751501465442,-151.0,0.00024567,7]
[369147817,1751501465451,-617.358828,0.00024567,7]
[369147818,1751501465460,-617.358828,0.00024567,7]
[369147819,1751501465469,-622.137778,0.00024567,7]
[369147820,1751501465479,-622.137778,0.00024567,7]
[369147821,1751501465489,-9504.15038,0.00024567,7]
[369147822,1751501465498,-9504.15038,0.00024567,7]
[369147823,1751501465508,-284.388367,0.00024567,7]
[369147824,1751501465517,-284.388367,0.00024567,7]
[369147825,1751501465526,-336.623846,0.00024567,7]
[369147826,1751501465535,-336.623846,0.00024567,7]
[369147827,1751501465545,-684.499913,0.00024567,7]
[369147828,1751501465554,-684.499913,0.00024567,7]
[369147829,1751501465564,-151.0,0.00024567,7]
[369147830,1751501465574,-151.0,0.00024567,7]
[369147831,1751501465583,-193.528007,0.00024567,7]
[369147832,1751501465593,-223.379236,0.00024567,7]
[369147833,1751501465602,-193.528007,0.00024567,7]
[369147834,1751501465611,-223.379236,0.00024567,7]
[369147835,1751501465621,-150.0,0.00024568,2]
[369147836,1751501465630,-1000.0,0.00024575,2]
[369147837,1751501465639,-611.58148357,0.00024576,2]
[369147838,1751501465649,-150.0,0.00024576,2]
[369147839,1751501465659,-1000.0,0.00024577,2]
[369147840,1751501465668,-1000.0,0.0002458,2]
[369147841,1751501465677,-150.0,0.00024581,2]
[369147842,1751501465686,-168.0,0.00024583,2]
[369147843,1751501465696,-150.0,0.00024594,2]
[369147844,1751501465710,-299.939567,0.00024597,7]
[369147845,1751501465720,-299.939567,0.00024597,7]
[369147846,1751501465729,-280.522502,0.00024597,7]
[369147847,1751501465738,-280.522502,0.00024597,7]
[369147848,1751501465749,-151.0,0.00024599,7]
[369147849,1751501465760,-320.680057,0.000246,7]
[369147850,1751501465771,-320.680057,0.000246,7]
[369147851,1751501465780,-200.0,0.000246,2]
[369147852,1751501465791,-535.780826,0.00024609,7]
[369147853,1751501465801,-535.780834,0.00024609,7]
[369147854,1751501465811,-864.301081,0.00024609,7]
[369147855,1751501465822,-864.301086,0.00024609,7]
[369147856,1751501465831,-170.03,0.00024615,2]
[369147857,1751501465842,-150.0,0.00024623,2]
[369147858,1751501465852,-600.0,0.00024623,5]
[369147859,1751501465863,-600.0,0.00024623,5]
[369147860,1751501465873,-600.0,0.00024623,5]
[369147861,1751501465884,-600.0,0.00024623,5]
[369147862,1751501465895,-600.0,0.00024623,5]
[369147863,1751501465905,-600.0,0.00024623,5]
[369147864,1751501465915,-323.51,0.00024623,5]
[369147865,1751501465926,-600.0,0.00024623,5]
[369147866,1751501465937,-600.0,0.00024623,5]
[369147867,1751501465948,-600.0,0.00024623,5]
[369147868,1751501465960,-600.0,0.00024623,5]
[369147869,1751501465970,-600.0,0.00024623,5]
[369147870,1751501465981,-600.0,0.00024623,5]
[369147871,1751501465990,-323.51,0.00024623,5]
[369147872,1751501465999,-600.0,0.00024623,5]
[369147873,1751501466008,-600.0,0.00024623,5]
[369147874,1751501466018,-600.0,0.00024623,5]
[369147875,1751501466027,-600.0,0.00024623,5]
[369147876,1751501466036,-600.0,0.00024623,5]
[369147877,1751501466046,-600.0,0.00024623,5]
[369147878,1751501466056,-323.51,0.00024623,5]
[369147879,1751501466065,-600.0,0.00024623,5]
[369147880,1751501466075,-600.0,0.00024623,5]
[369147881,1751501466084,-600.0,0.00024623,5]
[369147882,1751501466093,-600.0,0.00024623,5]
[369147883,1751501466102,-600.0,0.00024623,5]
[369147884,1751501466111,-600.0,0.00024623,5]
[369147885,1751501466121,-323.51,0.00024623,5]
[369147886,1751501466130,-600.0,0.00024623,5]
[369147887,1751501466140,-600.0,0.00024623,5]
[369147888,1751501466149,-150.0,0.00024624,2]
[369147889,1751501466159,-150.0,0.00024627,2]
[369147890,1751501466170,-150.0,0.00024646,2]
[369147891,1751501466179,-521.0,0.00024647,7]
[369147892,1751501466189,-151.0,0.00024652,7]
[369147893,1751501466199,-362.817573,0.00024652,7]
[369147894,1751501466208,-362.817573,0.00024652,7]
[369147895,1751501466218,-151.0,0.00024652,7]
[369147896,1751501466228,-276.837853,0.00024652,7]
[369147897,1751501466237,-151.0,0.00024652,7]
[369147898,1751501466247,-151.0,0.00024652,7]
[369147899,1751501466257,-151.0,0.00024652,7]
[369147900,1751501466266,-232.078486,0.00024652,7]
[369147901,1751501466275,-232.078486,0.00024652,7]
[369147902,1751501466285,-363.369063,0.00024652,7]
[369147903,1751501466296,-363.369063,0.00024652,7]
[369147904,1751501466306,-158.973573,0.00024652,7]
[369147905,1751501466316,-158.973573,0.00024652,7]
[369147906,1751501466325,-151.0,0.00024652,7]
[369147907,1751501466335,-151.0,0.00024652,7]
[369147908,1751501466345,-151.0,0.00024652,7]
[369147909,1751501466355,-213.154178,0.00024652,7]
[369147910,1751501466364,-213.154178,0.00024652,7]
[369147911,1751501466374,-493.858055,0.00024652,7]
[369147912,1751501466383,-493.858055,0.00024652,7]
[369147913,1751501466392,-151.0,0.00024652,7]
[369147914,1751501466402,-216.133187,0.00024652,7]
[369147915,1751501466411,-216.133187,0.00024652,7]
[369147916,1751501466420,-714.547674,0.00024652,7]
[369147917,1751501466430,-714.547674,0.00024652,7]
[369147918,1751501466439,-2868.18314,0.00024652,7]
[369147919,1751501466449,-2868.18314,0.00024652,7]
[369147920,1751501466459,-244.214239,0.00024652,7]
[369147921,1751501466468,-244.214239,0.00024652,7]
[369147922,1751501466478,-151.0,0.00024652,7]
[369147923,1751501466488,-238.627013,0.00024652,7]
[369147924,1751501466497,-238.627006,0.00024652,7]
[369147925,1751501466507,-528.900854,0.00024652,7]
[369147926,1751501466517,-528.900861,0.00024652,7]
[369147927,1751501466527,-157.564416,0.00024652,7]
[369147928,1751501466536,-157.564407,0.00024652,7]
[369147929,1751501466545,-170.032057,0.00024653,7]
[369147930,1751501466555,-182.865412,0.00024654,7]
[369147931,1751501466564,-182.865412,0.00024654,7]
[369147932,1751501466575,-174.375137,0.00024654,7]
[369147933,1751501466584,-174.375137,0.00024654,7]
[369147934,1751501466593,-151.0,0.00024654,7]
[369147935,1751501466603,-303.454645,0.00024654,7]
[369147936,1751501466612,-303.454645,0.00024654,7]
[369147937,1751501466622,-927.184092,0.00024654,7]
[369147938,1751501466631,-927.184092,0.00024654,7]
[369147939,1751501466641,-232.936423,0.00024654,7]
[369147940,1751501466650,-232.936421,0.00024654,7]
[369147941,1751501466660,-364.976019,0.00024654,7]
[369147942,1751501466669,-364.97601,0.00024654,7]
[369147943,1751501466679,-151.0,0.00024655,7]
[369147944,1751501466688,-151.0,0.00024655,7]
[369147945,1751501466698,-151.0,0.00024655,7]
[369147946,1751501466711,-151.0,0.00024655,7]
[369147947,1751501466720,-151.0,0.00024655,7]
[369147948,1751501466730,-1000.0,0.00024657,2]
[369147949,1751501466739,-1000.0,0.00024657,5]
[369147950,1751501466750,-999.69003712,0.00024657,8]
[369147951,1751501466759,-1004.2406901,0.00024658,5]
[369147952,1751501466826,-6059.7593099,0.00024658,5]
[369147953,1751501466835,-1052.730122,0.00024658,7]
[369147954,1751501466846,-1052.730122,0.00024658,7]
[369147955,1751501466855,-1052.730122,0.00024658,7]
[369147956,1751501466865,-1052.730122,0.00024658,7]
[369147957,1751501466875,-1052.730122,0.00024658,7]
[369147958,1751501466884,-1052.730122,0.00024658,7]
[369147959,1751501466894,-1052.730122,0.00024658,7]
[369147960,1751501466903,-1052.730122,0.00024658,7]
[369147961,1751501466912,-1052.730122,0.00024658,7]
[369147962,1751501466922,-1052.730122,0.00024658,7]
[369147963,1751501466932,-1052.730122,0.00024658,7]
[369147964,1751501466941,-1052.730122,0.00024658,7]